bitfinex/quotes_ETHUSD_20241101
["timestamp","ask_amount","ask_price","bid_price","bid_amount"]
[1730488178334,15.168808,2507.1,2507.0,3.98883]
[1730488178996,3.0,2507.0,2506.8,0.001]
[1730488179334,20.297699,2507.0,2506.8,3.99005]
[1730488179493,14.899656,2506.9,2506.8,3.99005]
[1730488180011,12.35294,2506.9,2506.8,3.99005]
[1730488180343,13.630574,2506.9,2506.8,3.99014]
[1730488180497,7.300809,2506.9,2506.8,3.99014]
[1730488181201,2.195089,2506.9,2506.8,3.99014]
[1730488181398,3.809282,2507.5,2506.8,3.99014]
[1730488181399,3.4234,2507.7,2507.3,3.98835]
[1730488181737,10.193304,2507.6,2507.5,3.98796]
[1730488181939,18.638553,2507.6,2507.3,3.98833]
[1730488182138,1.9061953,2507.5,2507.3,3.98833]
[1730488182352,1.9061953,2507.5,2507.2,3.98851]
[1730488182353,14.021268,2507.4,2507.2,3.98851]
[1730488182515,14.5221661,2507.4,2507.1,3.98854]
[1730488182729,7.996866,2507.3,2507.2,3.98838]
[1730488183059,8.306866,2507.3,2507.2,3.98838]
[1730488183752,6.143977,2507.3,2507.2,3.98838]
[1730488184362,6.143977,2507.3,2507.1,3.98854]
[1730488184363,3.0,2507.7,2507.5,3.98795]
[1730488184651,12.617701,2507.6,2507.5,3.98795]
[1730488185057,10.986898,2507.6,2507.5,3.98795]
[1730488185361,8.046196,2507.6,2507.5,3.98795]
[1730488185953,3.4234,2508.0,2507.6,3.98784]
[1730488186157,8.731937,2507.9,2507.8,3.98755]
[1730488186493,23.8071082,2508.0,2507.7,3.98768]
[1730488186757,23.8071082,2508.0,2507.8,3.98745]
[1730488186758,7.576334,2507.9,2507.8,3.98745]
[1730488186956,5.265993,2507.9,2507.8,3.98745]
[1730488187118,2.656844,2507.9,2507.8,3.98745]
[1730488187320,4.69785,2508.0,2507.9,3.98739]
[1730488187523,26.850604,2508.2,2508.0,3.98716]
[1730488187740,35.5057826,2508.2,2508.0,3.98716]
[1730488187944,35.5057826,2508.2,2507.8,3.98748]
[1730488187945,23.912981,2508.1,2507.8,3.98748]
[1730488188148,3.0,2508.0,2507.8,3.98748]
[1730488188462,3.0,2507.8,2507.7,3.98761]
[1730488188657,3.0,2508.0,2507.8,3.98752]
[1730488188860,26.31980654,2508.0,2507.5,3.98791]
[1730488189069,3.55,2507.8,2507.3,7.97649]
[1730488189247,3.55,2507.6,2507.4,3.98813]
[1730488189418,3.55,2507.6,2507.0,0.8064]
[1730488189419,10.026632,2507.5,2507.3,3.98834]
[1730488189620,3.55,2507.4,2507.3,3.98834]
[1730488189928,16.0539127,2507.4,2507.2,3.98847]
[1730488190134,15.550103,2507.3,2507.2,3.98843]
[1730488190531,12.693355,2507.3,2507.2,3.98843]
[1730488191057,9.146673,2507.3,2507.2,3.98843]
[1730488192223,3.55,2507.2,2506.8,0.001]
[1730488192445,0.55,2507.2,2507.1,3.98867]
[1730488192666,3.55,2507.2,2507.1,3.98867]
[1730488192822,0.55,2507.2,2507.1,3.98867]
[1730488194140,3.0,2507.7,2507.1,3.98867]
[1730488194340,1.5207962,2507.6,2507.3,3.98833]
[1730488194570,3.55,2507.4,2507.3,3.98833]
[1730488194776,16.50734,2507.4,2507.3,3.98833]
[1730488194976,8.956375,2507.4,2507.3,3.98833]
[1730488195163,8.406375,2507.4,2507.3,3.98833]
[1730488195378,1.5207962,2507.6,2507.3,3.98833]
[1730488195379,1.5207962,2507.6,2507.4,3.98819]
[1730488195543,10.51704,2507.5,2507.4,3.98819]
[1730488196051,8.409225,2507.5,2507.2,0.7651]
[1730488196244,0.55,2507.4,2507.3,3.98834]
[1730488196638,0.55,2507.6,2506.9,0.8136]
[1730488196938,0.55,2507.6,2507.5,3.98803]
[1730488197139,3.0,2507.8,2507.5,3.98803]
[1730488197365,3.0,2507.8,2507.6,3.98775]
[1730488197366,5.216839,2507.7,2507.6,3.98775]
[1730488197566,8.216839,2507.7,2507.6,3.98775]
[1730488197790,5.216839,2507.7,2507.6,3.98775]
[1730488197976,3.760899,2507.7,2507.6,3.98775]
[1730488198185,3.760899,2507.7,2507.5,3.98803]
[1730488198475,5.958407,2507.6,2507.5,3.98803]
[1730488198645,0.55,2507.9,2507.6,3.9908638]
[1730488198843,0.55,2507.7,2507.6,3.9908638]
[1730488199070,13.036457,2507.7,2507.6,3.9908638]
[1730488199279,12.074859,2507.7,2507.6,3.9908638]
[1730488199483,7.935688,2507.7,2507.6,3.9908638]
[1730488199688,6.11313,2507.7,2507.6,3.9908638]
[1730488200246,0.4234,2508.7,2507.6,1.77568952]
[1730488200579,0.83898988,2509.3,2508.9,3.98581]
[1730488200880,7.150947,2509.2,2509.0,3.98556]
[1730488201382,7.150947,2509.2,2508.6,0.8136]
[1730488201610,7.795342,2508.8,2508.6,0.0030838]
[1730488201804,31.752451,2508.7,2508.6,0.0030838]
[1730488202112,38.74446697,2508.7,2508.6,0.0030838]
[1730488202612,39.19255647,2508.7,2508.6,0.0030838]
[1730488202914,40.12820457,2508.7,2508.6,0.0030838]
[1730488203112,39.68011507,2508.7,2508.6,0.0030838]
[1730488203672,0.55,2508.1,2507.5,0.7648]
[1730488203874,3.0,2508.0,2507.9,3.98738]
[1730488204176,5.454642,2508.0,2507.9,3.98738]
[1730488204376,3.0,2507.9,2507.8,3.98748]
[1730488204578,3.0,2508.2,2507.8,3.98748]
[1730488204822,0.55,2507.9,2507.5,7.97585]
[1730488204982,7.41073,2508.0,2507.5,7.97585]
[1730488204983,3.55,2507.7,2507.5,7.97587]
[1730488205168,4.53208,2507.6,2507.5,7.97587]
[1730488205370,0.55,2507.7,2507.2,0.8001]
[1730488205599,0.55,2507.7,2507.5,3.98801]
[1730488205812,20.608432,2507.6,2507.5,7.97602]
[1730488206111,7.55075,2507.6,2507.5,7.97602]
[1730488206309,7.55075,2507.6,2507.5,3.98801]
[1730488206528,0.55,2507.9,2507.8,4.74705]
[1730488206812,4.232682,2508.4,2507.5,4.74742]
[1730488206813,7.359282,2508.1,2507.5,4.74742]
[1730488207010,3.55,2507.9,2507.5,7.97586]
[1730488207215,3.55,2507.7,2506.9,0.7595]
[1730488207417,7.359282,2507.5,2507.1,3.98863]
[1730488207711,3.55,2507.5,2507.2,3.98849]
[1730488207911,3.55,2507.3,2507.1,3.98863]
[1730488208111,0.55,2507.3,2507.1,3.98863]
[1730488208313,0.55,2507.4,2507.1,7.97722]
[1730488208514,0.55,2507.4,2507.1,3.98854]
[1730488208669,0.55,2507.5,2507.2,3.98844]
[1730488208871,3.55,2507.3,2506.9,4.74838]
[1730488209142,39.898045,2507.2,2506.8,3.99002]
[1730488209461,3.55,2507.0,2506.8,3.99002]
[1730488209659,11.480397,2506.9,2506.8,3.99002]
[1730488209864,18.992527,2506.9,2506.8,0.001]
[1730488210062,16.9027897,2506.9,2506.8,0.001]
[1730488210239,3.98947,2506.6,2506.2,3.99001]
[1730488210433,3.9734,2506.7,2506.2,3.99001]
[1730488210434,0.55,2506.5,2506.2,3.99001]
[1730488210640,0.55,2506.5,2506.4,3.98978]
[1730488210873,3.0,2506.5,2506.4,3.98978]
[1730488211064,3.809282,2506.6,2506.1,0.1229478]
[1730488211235,3.0,2506.4,2506.3,3.98994]
[1730488211563,3.0,2506.8,2506.4,3.98976]
[1730488211763,3.55,2506.6,2506.3,3.98994]
[1730488211975,3.55,2506.4,2506.2,3.9901]
[1730488212176,0.55,2506.4,2506.2,3.9901]
[1730488212377,0.55,2506.5,2506.2,3.99]
[1730488212538,0.55,2506.6,2506.4,3.98968]
[1730488212736,0.55,2506.6,2506.2,3.9901]
[1730488212737,3.55,2506.4,2506.2,3.99001]
[1730488212942,0.55,2506.4,2506.3,3.98994]
[1730488213139,0.55,2506.5,2506.4,3.98972]
[1730488213350,8.737616,2506.5,2506.4,3.98972]
[1730488213552,5.651524,2506.5,2506.4,3.98972]
[1730488213782,2.89468577,2507.4,2507.0,0.7959]
[1730488213950,0.4234,2507.7,2507.2,3.98837]
[1730488214156,19.941597,2507.6,2507.2,3.98837]
[1730488214363,20.495635,2507.6,2507.2,3.98837]
[1730488214668,3.98827,2507.4,2506.8,3.989]
[1730488214851,6.6987405,2507.5,2506.7,0.7959]
[1730488215180,3.55,2507.4,2507.1,3.98865]
[1730488215378,3.809282,2507.5,2507.1,3.98865]
[1730488215379,3.55,2507.2,2507.1,3.98865]
[1730488215578,13.481624,2507.2,2507.1,3.98865]
[1730488215790,0.55,2507.2,2507.1,3.98865]
[1730488215972,3.55,2507.2,2507.1,3.98865]
[1730488216171,0.55,2507.2,2507.1,3.98865]
[1730488216376,13.46165,2507.2,2507.1,3.801496]
[1730488217077,9.23443,2507.2,2507.1,3.801496]
[1730488217462,3.0,2507.1,2506.9,3.98897]
[1730488217663,1.473443,2507.2,2507.0,3.98883]
[1730488217889,9.329954,2507.1,2507.0,3.98883]
[1730488218094,6.961954,2507.1,2507.0,3.98883]
[1730488218253,8.488253,2507.1,2507.0,3.98883]
[1730488218451,3.55,2507.4,2507.0,3.98883]
[1730488218675,3.55,2507.2,2507.0,3.98883]
[1730488218879,12.096947,2507.1,2507.0,3.98883]
[1730488219963,3.0,2507.1,2507.0,3.98883]
[1730488220293,3.0,2507.4,2507.3,3.9882]
[1730488220497,2.89874449,2507.9,2507.6,3.98787]
[1730488220696,22.124083,2507.8,2507.6,3.98787]
[1730488220995,14.872067,2507.7,2507.5,3.98802]
[1730488221180,8.351,2507.8,2507.3,3.9883]
[1730488221381,14.229749,2507.7,2507.0,4.77081]
[1730488221597,1.389138,2507.7,2507.4,3.98815]
[1730488221782,3.0,2507.5,2507.2,3.98838]
[1730488221985,3.0,2507.3,2507.0,4.77068]
[1730488222185,15.780045,2507.4,2507.0,4.77068]
[1730488222186,3.0,2507.4,2507.0,4.77068]
[1730488222494,0.6809282,2507.3,2507.0,4.77068]
[1730488222696,0.55,2507.2,2506.7,0.8131]
[1730488222858,0.55,2507.2,2507.0,3.98876]
[1730488223053,7.00211,2507.1,2507.0,3.98876]
[1730488223256,3.0,2507.4,2507.2,4.80159]
[1730488223583,0.4234,2508.1,2507.8,3.798857]
[1730488223895,3.98741,2507.9,2507.5,3.98802]
[1730488224137,22.051422,2507.8,2507.5,3.98802]
[1730488224302,5.329291,2507.8,2507.3,3.98832]
[1730488224508,2.90070621,2508.2,2507.9,3.98737]
[1730488224669,3.0,2508.0,2507.8,3.98755]
[1730488224859,12.333266,2507.9,2507.8,3.98755]
[1730488225205,11.78948,2507.9,2507.8,3.98755]
[1730488225371,8.91648,2507.9,2507.8,4.76945]
[1730488225563,12.18072976,2508.6,2507.8,4.76945]
[1730488225564,2.90070621,2508.3,2508.1,3.98699]
[1730488225887,6.546555,2508.2,2507.9,3.98726]
[1730488226385,7.100593,2508.2,2507.8,7.97487]
[1730488226589,4.27685062,2508.3,2507.8,7.97487]
[1730488226590,24.197236,2508.1,2507.8,7.97487]
[1730488226757,3.0,2507.9,2507.8,3.98742]
[1730488226958,13.766182,2507.9,2507.8,3.98742]
[1730488228502,6.093674,2507.9,2507.8,3.98742]
[1730488229223,0.55,2508.2,2508.0,3.98713]
[1730488229411,3.0,2508.3,2508.0,0.8215]
[1730488229732,2.9017446,2508.8,2508.7,3.98612]
[1730488229901,2.9017446,2508.8,2508.6,3.98627]
[1730488229902,7.445183,2508.8,2508.6,3.98627]
[1730488230107,0.84451296,2508.7,2508.6,3.98627]
[1730488230426,5.81501396,2508.7,2508.6,3.98627]
[1730488230586,2.956133,2508.7,2508.6,4.80777]
[1730488230794,0.554038,2508.7,2508.6,0.8215]
[1730488231007,20.951875,2508.7,2508.4,3.9865]
[1730488231213,3.0,2508.5,2508.4,3.9865]
[1730488231399,11.908566,2508.5,2508.4,3.9865]
[1730488231637,11.433763,2508.5,2508.4,3.9865]
[1730488231929,7.901763,2508.5,2508.4,3.9865]
[1730488233089,5.059725,2508.5,2508.4,3.9865]
[1730488233433,0.99994656,2508.9,2508.8,3.98596]
[1730488233618,3.95510956,2508.9,2508.8,3.98596]
[1730488233930,3.95510956,2508.9,2508.7,8.72484]
[1730488234167,4.457611,2508.8,2508.7,4.73872]
[1730488234829,7.457611,2508.8,2508.7,4.73872]
[1730488235332,1.55398456,2508.9,2508.8,3.98596]
[1730488235745,7.76914756,2508.9,2508.8,3.98596]
[1730488235947,3.99994656,2508.9,2508.8,3.98596]
[1730488236150,0.99994656,2508.9,2508.8,3.98596]
[1730488236336,7.21510956,2508.9,2508.8,3.98596]
[1730488236650,8.01310956,2508.9,2508.8,3.98596]
[1730488237735,6.215163,2508.9,2508.8,3.98596]
[1730488238137,0.554038,2509.3,2508.7,0.7526]
[1730488238138,0.55,2509.2,2508.7,0.7526]
[1730488238344,0.554038,2508.9,2508.7,4.73866]
[1730488238647,0.554038,2508.9,2508.8,3.98596]
[1730488238818,0.554038,2508.9,2508.7,3.98606]
[1730488239024,3.554038,2508.9,2508.7,3.98606]
[1730488239348,0.554038,2508.9,2508.8,3.98596]
[1730488239548,3.554038,2508.9,2508.8,3.98596]
[1730488239748,11.096409,2508.9,2508.7,3.98606]
[1730488239950,0.554038,2508.9,2508.8,3.98596]
[1730488240112,3.554038,2508.9,2508.8,3.98596]
[1730488240309,3.0,2508.8,2508.5,3.98631]
[1730488240530,3.0,2508.6,2508.3,3.98665]
[1730488240854,3.0,2508.6,2508.1,0.7872]
[1730488240855,3.0,2508.4,2508.1,0.7872]
[1730488241037,3.554038,2508.5,2508.1,4.77416]
[1730488241373,3.554038,2508.5,2507.9,4.77446]
[1730488241537,0.55,2508.3,2507.9,4.77446]
[1730488241737,3.55,2508.3,2507.7,3.98762]
[1730488242064,11.90008,2508.3,2507.7,3.98762]
[1730488242218,3.0,2508.0,2507.6,0.7522]
[1730488242423,0.55,2508.2,2507.6,0.7522]
[1730488242624,0.55,2508.2,2507.9,3.98733]
[1730488243128,1.37906638,2508.2,2507.6,4.73998]
[1730488243360,5.36600638,2508.2,2507.8,3.98755]
[1730488243570,3.0,2508.1,2507.8,3.98755]
[1730488243775,1.37906638,2508.2,2507.9,3.98735]
[1730488244480,0.7540338,2508.4,2508.1,3.98701]
[1730488244763,3.0,2508.2,2508.1,7.97398]
[1730488244969,10.80535,2508.2,2508.1,3.98697]
[1730488245122,8.208032,2508.2,2508.1,3.98697]
[1730488245667,6.852028,2508.2,2508.1,3.98697]
[1730488246177,6.852028,2508.2,2508.0,7.97435]
[1730488246340,3.0,2508.2,2508.1,3.98708]
[1730488246524,6.852028,2508.2,2508.1,3.98708]
[1730488246959,3.0,2508.2,2508.1,4.78798]
[1730488247161,0.55,2508.7,2508.3,3.98667]
[1730488247370,16.764019,2508.6,2508.2,3.98684]
[1730488247535,1.104038,2508.7,2508.3,3.98674]
[1730488247738,18.774502,2508.6,2508.3,3.98674]
[1730488248333,4.53645,2508.5,2508.1,4.78794]
[1730488248534,3.3415406,2508.5,2508.2,3.98684]
[1730488248868,3.55,2508.5,2508.1,8.77495]
[1730488249065,0.55,2508.5,2508.2,3.9869]
[1730488249377,3.55,2508.6,2508.2,3.9869]
[1730488250172,4.40937,2508.8,2508.5,3.98641]
[1730488250173,0.4234,2508.8,2508.5,3.98641]
[1730488250477,11.265482,2508.7,2508.5,3.98641]
[1730488250859,3.0,2508.6,2508.5,3.98641]
[1730488251052,12.499399,2508.6,2508.3,3.98666]
[1730488251287,13.315346,2508.5,2508.1,4.78785]
[1730488251492,7.540488,2508.5,2508.0,3.98713]
[1730488251642,3.9734,2508.2,2507.7,3.98759]
[1730488251843,3.0,2508.0,2507.6,3.98787]
[1730488252377,3.0,2508.0,2507.7,3.98756]
[1730488252676,7.96033,2508.2,2507.8,3.98753]
[1730488252861,3.0,2508.0,2507.8,3.98753]
[1730488253183,11.834936,2507.9,2507.8,7.97501]
[1730488253583,11.834936,2507.9,2507.8,3.98748]
[1730488253882,10.994855,2507.9,2507.8,3.98748]
[1730488254065,10.994855,2507.9,2507.6,3.98779]
[1730488254066,3.0,2507.8,2507.6,3.98779]
[1730488254270,12.203167,2507.7,2507.6,3.98779]
[1730488254589,3.0,2507.5,2506.8,0.7936]
[1730488254799,3.0,2507.1,2506.7,3.98928]
[1730488254947,3.0,2506.9,2506.5,3.98948]
[1730488255143,23.349262,2506.8,2506.4,3.98969]
[1730488255349,0.55,2506.6,2506.3,3.98983]
[1730488255653,3.0,2506.4,2506.2,3.9901]
[1730488255858,3.55,2506.6,2506.2,3.9901]
[1730488256542,3.55,2506.6,2506.2,3.99002]
[1730488256848,3.55,2506.6,2506.3,3.98994]
[1730488257059,14.380264,2506.5,2506.3,3.98994]
[1730488257248,9.967975,2506.4,2506.1,4.1130978]
[1730488257468,3.0,2506.4,2506.1,0.1229478]
[1730488257780,3.0,2506.2,2506.1,0.1229478]
[1730488258088,2.5973546,2506.5,2506.1,0.1229478]
[1730488258089,0.4234,2506.5,2506.3,3.98982]
[1730488258384,3.809282,2506.7,2506.3,3.98982]
[1730488258385,24.443512,2506.4,2506.3,3.98982]
[1730488259092,24.044203,2506.4,2506.3,3.98982]
[1730488259948,13.9082,2506.4,2506.3,3.98982]
[1730488260150,0.4234,2507.0,2506.7,3.98923]
[1730488260375,12.826252,2506.9,2506.8,3.98914]
[1730488260585,36.348045,2507.2,2506.8,3.98914]
[1730488260758,3.98911,2506.9,2506.4,3.9897]
[1730488260951,3.809282,2507.0,2506.1,1.014844]
[1730488261144,3.809282,2507.0,2506.7,3.98919]
[1730488261363,12.470116,2506.9,2506.7,3.98919]
[1730488261721,3.0,2506.8,2506.7,3.98918]
[1730488261892,15.512129,2506.8,2506.6,3.98944]
[1730488262049,4.960236,2506.7,2506.6,7.9788]
[1730488262251,3.0,2506.8,2506.7,3.98916]
[1730488262463,3.554038,2507.2,2506.7,3.98916]
[1730488262760,3.0,2507.0,2506.7,3.98916]
[1730488263160,3.0,2506.8,2506.5,3.98951]
[1730488263359,3.809282,2507.0,2506.6,3.98944]
[1730488263360,6.696542,2506.7,2506.6,3.98944]
[1730488263588,4.057282,2506.7,2506.6,3.98944]
[1730488263794,3.0,2506.7,2506.6,3.98944]
[1730488264389,0.55,2507.0,2506.8,3.98901]
[1730488264560,3.0,2506.9,2506.8,3.98901]
[1730488264900,8.825418,2506.9,2506.8,3.98906]
[1730488265082,5.825418,2506.9,2506.8,3.98906]
[1730488265397,3.0,2506.9,2506.8,3.98906]
[1730488265607,15.2673321,2506.9,2506.7,3.9892]
[1730488265809,4.3203141,2506.9,2506.7,3.9892]
[1730488266773,3.0,2506.9,2506.6,7.97883]
[1730488266997,3.0,2506.9,2506.6,3.98938]
[1730488267486,3.0,2506.7,2506.4,3.98967]
[1730488267687,0.55,2506.8,2506.4,3.98967]
[1730488267998,0.55,2506.8,2506.5,3.98954]
[1730488268310,3.0,2507.2,2506.9,3.98898]
[1730488268514,4.232682,2507.6,2507.2,3.98851]
[1730488268675,27.287234,2507.4,2506.9,3.98899]
[1730488268875,3.809282,2507.3,2506.8,0.7839]
[1730488269081,3.809282,2507.3,2507.0,3.98881]
[1730488269305,17.868853,2507.2,2507.0,3.98881]
[1730488269689,3.0,2507.1,2507.0,3.98881]
[1730488269878,5.844336,2507.1,2507.0,3.98881]
[1730488270774,5.844336,2507.1,2507.0,3.799526]
[1730488270980,4.00044993,2507.5,2507.4,3.98819]
[1730488271204,6.28854993,2507.5,2507.4,3.98819]
[1730488271410,1.00044993,2507.5,2507.4,3.98819]
[1730488272198,4.36332,2507.9,2507.6,3.9878]
[1730488272199,3.809282,2507.8,2507.6,3.9878]
[1730488272432,5.883633,2507.7,2507.6,3.9878]
[1730488272583,4.921621,2507.7,2507.5,3.98803]
[1730488272922,3.0,2507.7,2507.6,3.98787]
[1730488273142,6.042939,2507.7,2507.6,3.98787]
[1730488273297,6.042939,2507.7,2507.6,3.799221]
[1730488273298,5.356535,2507.7,2507.6,3.799221]
[1730488273835,2.356535,2507.7,2507.6,3.799221]
[1730488274138,6.87096695,2509.0,2507.6,3.799221]
[1730488274139,4.80938543,2508.4,2507.6,4.7665751]
[1730488274438,4.80938543,2508.4,2508.2,7.97363]
[1730488274594,4.357408,2508.3,2508.2,7.97363]
[1730488274794,1.00010343,2508.4,2508.3,3.98676]
[1730488274990,0.6244857,2508.7,2508.6,3.98628]
[1730488275399,0.554038,2509.2,2508.8,3.98582]
[1730488275637,9.191285,2509.1,2509.0,3.98563]
[1730488275843,4.16814,2509.1,2508.9,3.98578]
[1730488276133,0.436332,2509.1,2509.0,3.98565]
[1730488276499,4.971725,2509.1,2509.0,3.98565]
[1730488276916,3.212317,2509.1,2509.0,3.98565]
[1730488277123,2.871962,2509.1,2508.8,4.81365]
[1730488277307,2.871962,2509.1,2508.7,3.986]
[1730488277308,9.172167,2509.0,2508.7,3.986]
[1730488277520,0.554038,2509.0,2508.8,3.98587]
[1730488277823,0.554038,2509.0,2508.9,3.98581]
[1730488278005,3.809282,2509.3,2508.9,3.98581]
[1730488278310,3.55,2509.1,2508.8,3.98586]
[1730488278509,0.55,2509.1,2508.8,3.98586]
[1730488279109,0.55,2509.1,2508.5,0.8278]
[1730488279348,0.55,2509.1,2507.7,3.98758]
[1730488279349,0.55,2508.6,2507.9,0.8314]
[1730488279633,7.359282,2508.4,2508.0,3.98714]
[1730488279993,7.359282,2508.4,2507.9,0.8314]
[1730488280195,3.0,2508.2,2507.8,3.98744]
[1730488280398,0.55,2508.2,2507.9,3.98735]
[1730488280710,3.55,2508.0,2507.6,4.81436]
[1730488281044,3.55,2508.0,2507.6,7.97553]
[1730488281343,3.55,2508.0,2507.6,3.98776]
[1730488281542,3.55,2508.0,2507.7,3.9876]
[1730488281697,0.4234,2507.9,2507.5,3.98791]
[1730488281900,0.796065,2507.8,2507.6,3.98775]
[1730488282125,0.4234,2507.9,2507.6,3.98772]
[1730488282837,0.4234,2507.9,2507.7,3.98768]
[1730488283146,3.55,2508.0,2507.8,3.98754]
[1730488283310,7.624667,2507.9,2507.8,3.98754]
[1730488283630,3.0,2507.8,2507.7,3.98768]
[1730488283840,3.0,2508.0,2507.9,3.98739]
[1730488285040,7.491352,2508.0,2507.9,3.98739]
[1730488285209,9.28487502,2508.0,2507.7,3.98769]
[1730488285409,3.0,2507.7,2507.4,3.98819]
[1730488285628,3.0,2507.7,2507.6,3.98787]
[1730488286748,3.0,2508.0,2507.8,3.98744]
[1730488286899,0.55,2508.4,2508.1,3.98698]
[1730488287101,4.032356,2508.3,2508.1,3.98698]
[1730488287297,4.032356,2508.3,2508.2,3.9868]
[1730488287741,3.809282,2508.7,2508.4,3.98658]
[1730488287922,5.3180132,2508.6,2508.4,3.98658]
[1730488288246,7.843196,2508.5,2508.1,3.98708]
[1730488288450,3.809282,2508.4,2508.1,3.98708]
[1730488288819,0.55,2508.2,2507.7,3.9877]
[1730488289029,3.0,2508.0,2507.8,3.98747]
[1730488289707,3.0,2508.0,2507.9,3.98739]
[1730488290098,12.325194,2508.0,2507.9,3.79878]
[1730488290342,12.325194,2508.0,2507.8,7.97494]
[1730488290557,3.0,2508.0,2507.9,3.98739]
[1730488290702,6.159704,2508.0,2507.9,3.98739]
[1730488291608,5.4942,2508.0,2507.9,3.98739]
[1730488292376,8.090279,2508.0,2507.9,3.98739]
[1730488292532,8.090279,2508.0,2507.8,3.98747]
[1730488292734,3.0,2508.0,2507.9,3.98739]
[1730488292930,9.437319,2508.0,2507.9,3.98739]
[1730488293135,8.090279,2508.0,2507.9,3.98739]
[1730488293475,9.3352351,2508.0,2507.6,4.80258]
[1730488293637,3.55,2507.7,2507.4,3.9881]
[1730488293841,3.55,2507.7,2507.5,3.98798]
[1730488294035,3.0,2507.7,2507.6,3.98787]
[1730488294239,0.55,2507.9,2507.7,3.98764]
[1730488294439,3.0,2507.7,2507.3,4.81833]
[1730488294749,3.0,2507.7,2506.7,3.9893]
[1730488294750,3.0,2507.7,2507.5,3.98789]
[1730488295172,3.0,2507.7,2507.6,3.98787]
[1730488295873,4.45276381,2507.9,2507.6,3.98772]
[1730488296382,3.55,2507.7,2507.1,0.7772]
[1730488296555,3.55,2507.7,2507.6,3.98787]
[1730488296734,6.978521,2507.7,2507.6,3.98787]
[1730488296939,7.36730868,2507.7,2507.1,0.7772]
[1730488297181,3.0,2507.4,2507.3,3.98835]
[1730488297338,8.451178,2507.4,2507.3,3.98835]
[1730488298342,8.451178,2507.4,2507.1,3.98853]
[1730488298343,8.451178,2507.4,2507.1,3.98859]
[1730488298541,3.0,2507.2,2507.1,3.98859]
[1730488298878,3.55,2507.4,2507.1,3.98859]
[1730488299042,0.7359282,2507.3,2507.1,3.98859]
[1730488299241,0.7359282,2507.3,2507.2,3.98851]
[1730488299469,15.390784,2507.3,2507.2,3.98851]
[1730488299806,3.0,2507.2,2507.1,3.98866]
[1730488299991,3.55,2507.4,2507.3,3.98835]
[1730488300198,14.471731,2507.4,2507.3,3.98835]
[1730488300504,10.753291,2507.4,2507.3,3.98835]
[1730488301019,3.55,2507.4,2507.3,3.98835]
[1730488301179,8.757311,2507.4,2507.3,3.98835]
[1730488304766,8.757311,2507.4,2507.2,3.98848]
[1730488304969,6.302077,2507.3,2507.2,3.98848]
[1730488305214,3.809282,2508.1,2507.6,3.98784]
[1730488305411,4.232682,2508.4,2508.1,3.98708]
[1730488305709,7.562577,2508.3,2508.2,3.98685]
[1730488305872,6.609641,2508.3,2508.2,3.98685]
[1730488306071,6.609641,2508.3,2508.1,3.98706]
[1730488306805,3.0,2508.2,2508.1,3.98706]
[1730488307112,9.833441,2508.2,2508.1,3.98706]
[1730488307474,3.55,2508.3,2508.2,3.98692]
[1730488307724,8.401194,2508.3,2508.1,3.98706]
[1730488307869,13.936308,2508.2,2508.1,3.98706]
[1730488308071,13.936308,2508.2,2507.5,3.98803]
[1730488308072,3.9734,2508.1,2507.5,3.98803]
[1730488308306,3.0,2507.8,2507.4,0.7952]
[1730488308621,3.0,2507.8,2507.5,3.98796]
[1730488308817,6.809282,2507.6,2507.4,3.98819]
[1730488309118,7.359282,2507.6,2507.5,3.98803]
[1730488309900,3.55,2507.8,2507.7,3.98759]
[1730488310121,7.199282,2507.8,2507.7,3.98759]
[1730488310297,3.55,2507.8,2507.7,3.98759]
[1730488310810,3.0,2507.8,2507.7,3.98759]
[1730488311112,3.0,2507.8,2507.6,3.98785]
[1730488311113,6.98709,2508.1,2507.6,3.98774]
[1730488311328,1.88664636,2507.1,2505.7,0.83460057]
[1730488311625,3.99132,2505.5,2504.7,3.99245]
[1730488311778,3.99132,2505.5,2503.5,4.1172678]
[1730488311779,2.48116518,2505.2,2503.7,0.7976]
[1730488311980,3.0,2504.7,2503.8,3.99392]
[1730488312187,3.0,2504.5,2503.8,3.99391]
[1730488312406,3.0,2503.8,2503.6,5.592036]
[1730488312618,15.67808029,2503.7,2503.6,3.99411]
[1730488312787,6.809282,2503.9,2503.8,3.99392]
[1730488312990,6.809282,2503.9,2503.7,3.99408]
[1730488313188,3.0,2503.8,2503.7,3.99408]
[1730488313576,3.0,2503.8,2503.6,3.99424]
[1730488313786,3.0,2503.8,2503.6,7.98839]
[1730488314189,3.0,2503.8,2503.6,3.99415]
[1730488314610,7.26177145,2503.8,2503.7,3.99408]
[1730488314809,7.26177145,2503.8,2503.6,3.99415]
[1730488315223,7.26177145,2503.8,2503.6,7.98829]
[1730488315420,7.26177145,2503.8,2503.7,3.99408]
[1730488315838,7.26177145,2503.8,2503.6,3.99414]
[1730488316151,7.26177145,2503.8,2503.7,3.99408]
[1730488317515,3.0,2504.1,2504.0,3.99349]
[1730488317743,3.0,2504.1,2504.0,4.07335414]
[1730488318257,4.26177145,2504.2,2504.0,4.07335414]
[1730488318423,4.26177145,2504.2,2504.1,4.74465]